bitfinex/quotes_BTCUSD_20250225
["timestamp","ask_amount","ask_price","bid_price","bid_amount"]
[1740525810974,0.0495,89226.0,89209.0,0.00704374]
[1740525811182,0.168115,89225.0,89209.0,0.01061289]
[1740525811381,0.168114,89225.0,89209.0,0.00556915]
[1740525811622,0.273651,89226.0,89210.0,0.007043]
[1740525811846,0.168125,89220.0,89210.0,0.007043]
[1740525812230,0.168125,89220.0,89209.0,0.004]
[1740525812434,0.168123,89221.0,89209.0,0.004]
[1740525812634,0.224156,89224.0,89210.0,0.007043]
[1740525812988,0.168116,89224.0,89210.0,0.007043]
[1740525813299,0.168116,89224.0,89207.0,0.168148]
[1740525813504,0.168116,89224.0,89211.0,0.00704112]
[1740525813819,0.168116,89224.0,89207.0,0.168148]
[1740525814036,0.168116,89224.0,89212.0,0.00704038]
[1740525814242,0.217613,89226.0,89209.0,0.168143]
[1740525814565,0.0495,89226.0,89210.0,0.00961101]
[1740525814724,0.0495,89226.0,89212.0,0.168137]
[1740525815120,0.0495,89226.0,89213.0,0.00703964]
[1740525815443,0.3495,89226.0,89213.0,0.00703964]
[1740525816040,0.517613,89226.0,89213.0,0.00703964]
[1740525816238,0.168114,89225.0,89213.0,0.00703964]
[1740525816642,0.0495,89226.0,89213.0,0.00703964]
[1740525816851,0.3495,89226.0,89213.0,0.00703964]
[1740525817058,0.3495,89226.0,89211.0,0.08146915]
[1740525817249,0.3495,89226.0,89214.0,0.00703891]
[1740525817524,0.3495,89226.0,89212.0,0.00704038]
[1740525817730,0.0495,89226.0,89215.0,0.00703817]
[1740525817930,0.293096,89235.0,89217.0,0.224171]
[1740525818166,0.293096,89235.0,89213.0,0.00156915]
[1740525818167,0.3,89234.0,89219.0,0.224167]
[1740525818398,0.3,89234.0,89220.0,0.00156896]
[1740525818670,0.3,89234.0,89226.0,0.168111]
[1740525819132,0.03414139,89235.0,89227.0,0.0070307]
[1740525819316,0.0016968,89240.0,89227.0,0.0070307]
[1740525820097,0.004,89235.0,89227.0,0.0070307]
[1740525820304,0.3,89234.0,89226.0,0.00041814]
[1740525820974,0.3,89234.0,89227.0,0.0070307]
[1740525821150,0.468088,89239.0,89226.0,0.00041814]
[1740525821373,0.3,89239.0,89228.0,0.00702996]
[1740525821613,0.3,89239.0,89226.0,0.00041814]
[1740525822058,0.3,89239.0,89227.0,0.0070307]
[1740525822298,0.20673008,89240.0,89227.0,0.0070307]
[1740525822299,0.03664408,89240.0,89227.0,0.0070307]
[1740525822890,0.3,89236.0,89227.0,0.0070307]
[1740525823119,0.3,89236.0,89226.0,0.00041814]
[1740525823330,0.3,89236.0,89228.0,0.00702996]
[1740525823691,0.3,89236.0,89226.0,0.00041814]
[1740525823832,0.468094,89236.0,89226.0,0.00041814]
[1740525824065,0.468092,89237.0,89226.0,0.00041814]
[1740525824268,0.3,89237.0,89227.0,0.00702501]
[1740525824481,0.3,89237.0,89226.0,0.00041814]
[1740525824900,0.3,89237.0,89227.0,0.00702501]
[1740525825097,0.3,89239.0,89227.0,0.00702501]
[1740525825308,0.168096,89235.0,89227.0,0.00702501]
[1740525825501,0.168097,89234.0,89226.0,0.00041814]
[1740525826001,0.3,89239.0,89226.0,0.00041814]
[1740525826211,0.33664408,89240.0,89226.0,0.00041814]
[1740525826428,0.50473108,89240.0,89227.0,0.00702501]
[1740525826640,0.002,89237.0,89227.0,0.00702501]
[1740525826797,0.001,89237.0,89227.0,0.00702501]
[1740525827064,0.0016968,89240.0,89239.0,0.168087]
[1740525827283,0.0016968,89240.0,89239.0,0.24565564]
[1740525827495,0.0016968,89240.0,89239.0,0.24910316]
[1740525827703,0.0036968,89240.0,89239.0,0.24910316]
[1740525827910,0.0036968,89240.0,89239.0,0.37739154]
[1740525828117,0.0036968,89240.0,89239.0,0.37639154]
[1740525828546,0.0036968,89240.0,89239.0,0.42139154]
[1740525828968,0.0036968,89240.0,89239.0,0.72139154]
[1740525829130,8e-07,89240.0,89239.0,0.82139154]
[1740525829496,0.0016972,89242.0,89241.0,0.568084]
[1740525829698,0.0016972,89242.0,89241.0,0.82675818]
[1740525830307,0.10084011,89279.0,89274.0,0.246822]
[1740525830510,0.10084011,89279.0,89274.0,0.26136285]
[1740525830769,0.10084011,89279.0,89274.0,0.38206234]
[1740525830919,0.0008481,89290.0,89274.0,0.38206234]
[1740525831762,0.0008481,89290.0,89274.0,0.38906234]
[1740525832179,0.0008481,89290.0,89274.0,0.41621677]
[1740525832386,0.0008481,89290.0,89274.0,0.42321677]
[1740525832761,0.0008481,89290.0,89274.0,0.43021677]
[1740525833170,0.0008481,89290.0,89274.0,0.43721677]
[1740525833554,0.0008481,89290.0,89274.0,0.41621677]
[1740525833874,0.0008481,89290.0,89274.0,0.43021677]
[1740525834543,0.0008481,89290.0,89274.0,0.41621677]
[1740525834744,0.0008481,89290.0,89274.0,0.42321677]
[1740525835402,0.0008481,89290.0,89274.0,0.41621677]
[1740525835601,0.0008481,89290.0,89274.0,0.42321677]
[1740525835811,0.0008481,89290.0,89274.0,0.43021677]
[1740525836224,0.0008481,89290.0,89274.0,0.42321677]
[1740525836423,0.0008481,89290.0,89274.0,0.43021677]
[1740525836626,0.0008481,89290.0,89274.0,0.39606234]
[1740525836844,0.0008481,89290.0,89274.0,0.38906234]
[1740525837316,0.0008481,89290.0,89274.0,0.39606234]
[1740525838150,0.0008481,89290.0,89274.0,0.40306234]
[1740525839102,0.0008481,89290.0,89274.0,0.38906234]
[1740525839737,0.0008481,89290.0,89274.0,0.39606234]
[1740525840360,0.0008481,89290.0,89274.0,0.01395196]
[1740525840562,0.0475,89284.0,89274.0,0.02095196]
[1740525841381,0.0475,89284.0,89274.0,0.01395196]
[1740525841786,0.0475,89284.0,89274.0,0.02095196]
[1740525842326,0.0475,89284.0,89274.0,0.01395196]
[1740525842524,0.167995,89289.0,89274.0,0.01395196]
[1740525842707,0.0008481,89290.0,89274.0,0.01395196]
[1740525842906,0.168001,89285.0,89274.0,0.02095196]
[1740525843108,0.223993,89289.0,89274.0,0.02095196]
[1740525843306,0.223995,89288.0,89274.0,0.02095196]
[1740525843573,0.168004,89284.0,89274.0,0.02095196]
[1740525843789,0.224003,89285.0,89274.0,0.02095196]
[1740525843925,0.0008481,89290.0,89274.0,0.02095196]
[1740525844290,0.168005,89283.0,89274.0,0.02095196]
[1740525845030,0.0008481,89290.0,89274.0,0.02095196]
[1740525845230,0.167996,89288.0,89274.0,0.02095196]
[1740525845454,0.223998,89287.0,89274.0,0.02095196]
[1740525845747,0.168003,89284.0,89274.0,0.02095196]
[1740525846487,0.223993,89289.0,89274.0,0.02095196]
[1740525846704,0.0008481,89290.0,89274.0,0.02095196]
[1740525846912,0.1697166,89275.0,89274.0,0.02095196]
[1740525847265,0.0016966,89275.0,89274.0,0.014]
[1740525847710,0.1697166,89275.0,89274.0,0.014]
[1740525848009,0.2151166,89275.0,89274.0,0.014]
[1740525848214,0.5151166,89275.0,89274.0,0.014]
[1740525849132,0.3,89272.0,89245.0,0.01012]
[1740525849347,0.00103909,89271.0,89239.0,0.71053814]
[1740525849567,0.3,89270.0,89239.0,0.71053814]
[1740525849758,0.00103909,89269.0,89239.0,0.71053814]
[1740525850170,0.168086,89240.0,89239.0,0.00041814]
[1740525850370,0.16808,89243.0,89239.0,0.00041814]
[1740525850574,0.0471,89253.0,89239.0,0.00041814]
[1740525850726,0.16808,89243.0,89239.0,0.00041814]
[1740525850960,0.0471,89253.0,89239.0,0.00041814]
[1740525851132,0.0046966,89275.0,89239.0,0.00041814]
[1740525851133,0.168068,89250.0,89239.0,0.00041814]
[1740525851615,0.224057,89263.0,89239.0,0.00041814]
[1740525851810,0.168062,89253.0,89239.0,0.00041814]
[1740525852116,0.168063,89252.0,89239.0,0.00041814]
[1740525852314,0.003,89269.0,89239.0,0.00441814]
[1740525852566,0.168065,89251.0,89239.0,0.00041814]
[1740525852945,0.168065,89251.0,89239.0,0.00341814]
[1740525853312,0.168065,89251.0,89239.0,0.00041814]
[1740525853565,0.168063,89252.0,89239.0,0.00141814]
[1740525853760,0.168063,89252.0,89239.0,0.00241814]
[1740525854224,0.168063,89252.0,89239.0,0.00411494]
[1740525854439,0.224083,89253.0,89239.0,0.00411494]
[1740525854646,0.168063,89252.0,89239.0,0.00411494]
[1740525854873,0.168063,89252.0,89239.0,0.00311494]
[1740525855044,0.168061,89253.0,89239.0,0.00311494]
[1740525855244,0.224059,89262.0,89239.0,0.17220194]
[1740525855518,0.224059,89262.0,89239.0,0.17120194]
[1740525855926,0.224067,89259.0,89239.0,0.17120194]
[1740525856134,0.224069,89259.0,89239.0,0.00411494]
[1740525856287,0.168061,89253.0,89239.0,0.00411494]
[1740525856619,0.0486,89264.0,89239.0,0.00211494]
[1740525856757,0.168075,89246.0,89239.0,0.00211494]
[1740525857116,0.003,89262.0,89239.0,0.00211494]
[1740525857117,0.168086,89240.0,89239.0,0.00211494]
[1740525857315,0.168084,89241.0,89239.0,0.00211494]
[1740525857518,0.168083,89242.0,89239.0,0.00211494]
[1740525857726,0.168084,89241.0,89239.0,0.00211494]
[1740525857954,0.224099,89246.0,89239.0,0.00211494]
[1740525858148,0.224086,89252.0,89239.0,0.00211494]
[1740525858285,0.0296793,89259.0,89239.0,0.00311494]
[1740525858497,0.168074,89246.0,89239.0,0.00311494]
[1740525858701,0.168078,89244.0,89239.0,0.00211494]
[1740525858915,0.168078,89244.0,89239.0,0.00811494]
[1740525859111,0.001,89241.0,89239.0,0.00911494]
[1740525859309,0.001,89241.0,89239.0,0.00311494]
[1740525859517,0.168086,89240.0,89239.0,0.00211494]
[1740525859717,0.168086,89240.0,89239.0,0.00711494]
[1740525859929,0.224098,89247.0,89239.0,0.00711494]
[1740525860120,0.168083,89242.0,89239.0,0.00711494]
[1740525860319,0.0486,89264.0,89239.0,0.00711494]
[1740525860527,0.168082,89242.0,89239.0,0.00711494]
[1740525860841,0.224105,89244.0,89239.0,0.00211494]
[1740525861010,0.168086,89240.0,89239.0,0.00211494]
[1740525861209,0.168086,89240.0,89239.0,0.00711494]
[1740525861412,0.168086,89240.0,89239.0,0.00211494]
[1740525861768,0.168078,89244.0,89239.0,0.00711494]
[1740525862173,0.3,89262.0,89239.0,0.00811494]
[1740525862174,0.001,89241.0,89239.0,0.00811494]
[1740525862397,0.001,89241.0,89239.0,0.01311494]
[1740525862759,0.16808,89243.0,89239.0,0.00211494]
[1740525862965,0.16808,89243.0,89239.0,0.01011494]
[1740525863166,0.224094,89248.0,89239.0,0.01011494]
[1740525863353,0.168086,89240.0,89239.0,0.00611494]
[1740525863707,0.168086,89240.0,89239.0,0.01111494]
[1740525864967,0.168086,89240.0,89239.0,0.00711494]
[1740525865184,0.3293,89247.0,89239.0,0.00711494]
[1740525865385,0.001,89240.0,89239.0,0.00811494]
[1740525865587,0.169086,89240.0,89239.0,0.0165622]
[1740525865783,0.001,89240.0,89239.0,0.01311494]
[1740525865998,0.001,89240.0,89239.0,0.0165622]
[1740525866190,0.001,89240.0,89239.0,0.00811494]
[1740525866387,0.001,89240.0,89239.0,0.01111494]
[1740525866592,0.168085,89241.0,89239.0,0.00211494]
[1740525867016,0.168086,89240.0,89239.0,0.00511494]
[1740525868048,0.168086,89240.0,89239.0,0.01011494]
[1740525868348,0.3293,89247.0,89239.0,0.00711494]
[1740525868592,0.168082,89242.0,89239.0,0.01211494]
[1740525869196,0.168082,89242.0,89239.0,0.00711494]
[1740525869401,0.169086,89240.0,89239.0,0.00811494]
[1740525869778,0.224105,89244.0,89239.0,0.00211494]
[1740525869987,0.16808,89243.0,89239.0,0.00211494]
[1740525870242,0.168086,89240.0,89239.0,0.00711494]
[1740525870431,0.168086,89240.0,89239.0,0.01011494]
[1740525870794,0.162886,89240.0,89239.0,0.01011494]
[1740525871379,0.162886,89240.0,89239.0,0.00511494]
[1740525871779,0.162886,89240.0,89239.0,0.00911494]
[1740525872174,0.162886,89240.0,89239.0,0.00211494]
[1740525872585,0.46492509,89240.0,89239.0,0.00811494]
[1740525872799,0.463886,89240.0,89239.0,0.01211494]
[1740525873221,0.463886,89240.0,89239.0,0.00811494]
[1740525873359,0.793186,89240.0,89239.0,0.01311494]
[1740525873914,0.793186,89240.0,89239.0,0.00811494]
[1740525874054,0.793186,89240.0,89239.0,0.01011494]
[1740525874464,0.792186,89240.0,89239.0,0.00411494]
[1740525874849,0.792186,89240.0,89239.0,0.00611494]
[1740525879804,0.7930344,89240.0,89239.0,0.00611494]
[1740525884166,0.6301484,89240.0,89239.0,0.00611494]
[1740525885656,0.3301484,89240.0,89239.0,0.00611494]
[1740525885870,0.4982344,89240.0,89239.0,0.00611494]
[1740525888268,0.3301484,89240.0,89239.0,0.00611494]
[1740525893339,0.4982344,89240.0,89239.0,0.00611494]
[1740525894249,0.4982344,89240.0,89239.0,0.00411494]
[1740525894458,0.4982344,89240.0,89239.0,0.00211494]
[1740525894589,0.4982344,89240.0,89239.0,0.00311494]
[1740525894978,0.4982344,89240.0,89239.0,0.00411494]
[1740525895375,0.3311484,89240.0,89239.0,0.00411494]
[1740525895590,0.4992344,89240.0,89239.0,0.00411494]
[1740525896289,0.3311484,89240.0,89239.0,0.00411494]
[1740525896489,0.3301484,89240.0,89239.0,0.00311494]
[1740525896846,0.3311484,89240.0,89239.0,0.00211494]
[1740525897054,0.3301484,89240.0,89239.0,0.00211494]
[1740525897254,0.3311484,89240.0,89239.0,0.00211494]
[1740525897654,0.3301484,89240.0,89239.0,0.00211494]
[1740525898642,0.3301484,89240.0,89239.0,0.00411494]
[1740525898849,0.3301484,89240.0,89239.0,0.08819769]
[1740525899348,0.3301484,89240.0,89239.0,0.07971494]
[1740525899751,0.3301484,89240.0,89239.0,0.09019769]
[1740525900589,0.0008484,89240.0,89239.0,0.09019769]
[1740525901154,0.0008484,89240.0,89239.0,0.30408469]
[1740525901425,0.0008484,89240.0,89239.0,0.43237307]
[1740525902315,0.0008484,89240.0,89239.0,0.43037307]
[1740525902533,0.0008484,89240.0,89239.0,0.13399769]
[1740525902693,0.0008484,89240.0,89239.0,0.08819769]
[1740525904479,0.0008484,89240.0,89239.0,0.08619769]
[1740525904649,0.0008484,89240.0,89239.0,0.25428469]
[1740525904847,0.0018484,89240.0,89239.0,0.26128469]
[1740525905044,0.0018484,89240.0,89239.0,0.43537307]
[1740525905248,0.0261155,89257.0,89252.0,0.0756]
[1740525905414,0.0261155,89257.0,89253.0,0.00846376]
[1740525905613,0.0261155,89257.0,89252.0,0.0756]
[1740525905819,0.0261155,89257.0,89253.0,0.00833876]
[1740525906019,0.0261155,89257.0,89252.0,0.0756]
[1740525906217,0.168059,89254.0,89253.0,0.00833876]
[1740525906423,0.224077,89255.0,89252.0,0.0806]
[1740525906665,0.168057,89255.0,89253.0,0.00833876]
[1740525906849,0.168057,89255.0,89252.0,0.0806]
[1740525907484,0.168059,89254.0,89252.0,0.0806]
[1740525908092,0.168059,89254.0,89252.0,0.0756]
[1740525908299,0.168059,89254.0,89252.0,0.0746]
[1740525908502,0.168059,89254.0,89253.0,0.006]
[1740525908902,0.168059,89254.0,89252.0,0.0746]
[1740525909363,0.168061,89253.0,89252.0,0.0806]
[1740525909735,0.168061,89253.0,89252.0,0.0746]
[1740525909893,0.1689042,89256.0,89252.0,0.0746]
[1740525910098,0.168059,89255.0,89252.0,0.0776]
[1740525910326,0.0008482,89256.0,89252.0,0.0776]
[1740525910647,0.168059,89254.0,89252.0,0.0776]
[1740525910849,0.168061,89253.0,89252.0,0.008]
[1740525911249,0.168061,89253.0,89252.0,0.003]
[1740525911488,0.168086,89240.0,89239.0,0.00211494]
[1740525912666,0.168083,89242.0,89239.0,0.00211494]
[1740525912893,0.224077,89255.0,89239.0,0.00211494]
[1740525913113,0.0008482,89256.0,89239.0,0.00211494]
[1740525913443,0.0008482,89256.0,89240.0,0.08954717]
[1740525913620,0.168079,89244.0,89240.0,0.08954717]
[1740525913847,0.168073,89247.0,89240.0,0.0812]
[1740525913982,0.168073,89247.0,89241.0,0.00834625]
[1740525914183,0.16807,89249.0,89241.0,0.00834625]
[1740525914540,0.168071,89248.0,89240.0,0.0812]
[1740525914841,0.168071,89248.0,89241.0,0.00834625]
[1740525915045,0.168069,89249.0,89240.0,0.0812]
[1740525915363,0.224077,89255.0,89241.0,0.00834625]
[1740525915501,0.0008482,89256.0,89241.0,0.00834625]
[1740525915925,0.168072,89248.0,89240.0,0.0862]
[1740525916129,0.168074,89247.0,89240.0,0.0812]
[1740525916303,0.168074,89247.0,89241.0,0.00834625]
[1740525916695,0.168074,89247.0,89241.0,0.01234625]
[1740525917107,0.168082,89242.0,89241.0,0.00834625]
[1740525917312,0.468082,89242.0,89241.0,0.00834625]
[1740525917567,0.50880934,89242.0,89241.0,0.00834625]
[1740525917738,0.468086,89240.0,89239.0,0.00211494]
[1740525921191,0.50881334,89240.0,89239.0,0.00211494]
[1740525922211,0.34072734,89240.0,89239.0,0.00211494]
[1740525922772,0.50881334,89240.0,89239.0,0.00211494]
[1740525923610,0.34072734,89240.0,89239.0,0.00211494]
[1740525923783,0.04072734,89240.0,89239.0,0.00211494]
[1740525924123,0.04072734,89240.0,89239.0,0.01048505]
[1740525924928,0.04072734,89240.0,89239.0,0.00311494]
[1740525925135,0.04072734,89240.0,89239.0,0.00611494]
[1740525925432,0.04072734,89240.0,89239.0,0.01048386]
[1740525926054,0.03437754,89240.0,89239.0,0.00211494]
[1740525926763,0.03437754,89240.0,89239.0,0.00911494]
[1740525927365,0.224105,89244.0,89239.0,0.00911494]
[1740525927366,0.168083,89242.0,89239.0,0.00911494]
[1740525927548,0.16808,89243.0,89239.0,0.00911494]
[1740525927988,0.224105,89244.0,89239.0,0.00911494]
[1740525928186,0.2241,89246.0,89239.0,0.00911494]
[1740525928393,0.3,89248.0,89239.0,0.00511494]
[1740525928583,0.168074,89247.0,89239.0,0.00811494]
[1740525928817,0.3,89246.0,89239.0,0.00811494]
[1740525929021,0.468076,89246.0,89239.0,0.00811494]
[1740525929140,0.16808,89244.0,89239.0,0.00511494]
[1740525929557,0.3,89246.0,89239.0,0.00511494]
[1740525929766,0.3,89251.0,89239.0,0.00511494]
[1740525930210,0.3,89251.0,89239.0,0.00211494]
[1740525930381,0.168083,89242.0,89239.0,0.00311494]
[1740525930588,0.3,89251.0,89239.0,0.00511494]
[1740525930812,0.168082,89243.0,89239.0,0.00511494]
[1740525930985,0.168082,89242.0,89239.0,0.00411494]
[1740525931792,0.168081,89243.0,89239.0,0.00411494]
[1740525932017,0.0132753,91564.0,89239.0,0.00411494]
[1740525932223,0.168086,89240.0,89239.0,0.00711494]
[1740525932758,0.16808,89243.0,89239.0,0.00711494]
[1740525933158,0.224102,89245.0,89239.0,0.00711494]
[1740525933310,0.168079,89244.0,89239.0,0.00511494]
[1740525933876,0.224067,89259.0,89239.0,0.00511494]
[1740525934017,0.168068,89250.0,89239.0,0.00511494]
[1740525934244,0.3,89258.0,89242.0,0.16808]
[1740525934455,0.3,89258.0,89239.0,0.00411494]
[1740525934456,0.3,89258.0,89243.0,0.08616524]
[1740525934973,0.3,89258.0,89244.0,0.01454085]
[1740525935172,0.0684,89285.0,89252.0,0.291963]
[1740525935173,0.004,89253.0,89252.0,0.291963]
[1740525935373,0.002,89253.0,89252.0,0.291963]
[1740525935677,0.002,89253.0,89252.0,0.300306]
[1740525936881,0.001,89253.0,89252.0,0.300306]
[1740525937649,0.001,89253.0,89252.0,0.132243]
[1740525937848,0.0038484,89253.0,89252.0,0.305306]
[1740525938288,0.0018484,89253.0,89252.0,0.137243]
[1740525938583,0.0018484,89253.0,89252.0,0.143243]
[1740525939101,0.0018484,89253.0,89252.0,0.311306]
[1740525939300,0.0018484,89253.0,89252.0,0.143243]
[1740525940129,0.0008484,89253.0,89252.0,0.132243]
[1740525940330,0.0008484,89253.0,89252.0,0.143243]
[1740525940885,0.0008484,89253.0,89252.0,0.137243]
[1740525941231,0.0008484,89253.0,89252.0,0.138243]
[1740525941674,0.0008484,89253.0,89252.0,0.143243]
[1740525941879,0.0008484,89253.0,89252.0,0.132243]
[1740525942564,0.0008484,89253.0,89252.0,0.138243]
[1740525943312,0.0008484,89253.0,89252.0,0.143243]
[1740525943716,0.0008484,89253.0,89252.0,0.137243]
[1740525944071,0.0008484,89253.0,89252.0,0.143243]
[1740525944916,0.0008484,89253.0,89252.0,0.137243]
[1740525945133,0.0008484,89253.0,89252.0,0.138243]
[1740525945500,0.0008484,89253.0,89252.0,0.014343]
[1740525945501,0.1689094,89253.0,89252.0,0.014343]
[1740525945700,0.16994849,89253.0,89252.0,0.008343]
[1740525945899,0.168082,89242.0,89239.0,0.00211494]
[1740525946103,0.168086,89240.0,89239.0,0.00211494]
[1740525946278,0.168086,89240.0,89239.0,0.70211494]
[1740525946673,0.224111,89242.0,89239.0,0.0117783]
[1740525946839,0.168086,89240.0,89239.0,0.00211494]
[1740525947044,0.3,89250.0,89239.0,0.00711494]
[1740525947244,0.3008484,89253.0,89239.0,0.00711494]
[1740525947545,0.3,89245.0,89239.0,0.00211494]
[1740525947692,0.001,89240.0,89239.0,0.01511494]
[1740525947892,0.001,89240.0,89239.0,0.0247783]
[1740525948093,0.169086,89240.0,89239.0,0.00911494]
[1740525948299,0.168086,89240.0,89239.0,0.00411494]
[1740525948495,0.168086,89240.0,89239.0,0.00511494]
[1740525948915,0.168082,89243.0,89239.0,0.00511494]
[1740525949258,0.168084,89241.0,89239.0,0.00511494]
[1740525949679,0.168086,89240.0,89239.0,0.00311494]
[1740525950024,0.00103909,89251.0,89239.0,0.00911494]
[1740525950183,0.168086,89240.0,89239.0,0.00211494]
[1740525950383,0.168086,89240.0,89239.0,0.00811494]
[1740525950636,0.168086,89240.0,89239.0,0.01311494]
[1740525950780,0.168086,89240.0,89239.0,0.00711494]
[1740525951182,0.168086,89240.0,89239.0,0.00911494]
[1740525951368,0.168086,89240.0,89239.0,0.00411494]
[1740525951567,0.168086,89240.0,89239.0,0.00211494]
[1740525951922,0.168086,89240.0,89239.0,0.00811494]
[1740525952359,0.468086,89240.0,89239.0,0.00811494]
[1740525953017,0.468086,89240.0,89239.0,0.00911494]
[1740525953243,0.468086,89240.0,89239.0,0.00211494]
[1740525953463,0.469086,89240.0,89239.0,0.00211494]
[1740525954015,0.470086,89240.0,89239.0,0.00211494]
[1740525956258,0.468086,89240.0,89239.0,0.00211494]
[1740525956700,0.469086,89240.0,89239.0,0.00211494]
[1740525956954,0.468086,89240.0,89239.0,0.00211494]
[1740525957147,0.50346354,89240.0,89239.0,0.00211494]
[1740525957420,0.03537754,89240.0,89239.0,0.00211494]
[1740525957618,0.20450263,89240.0,89239.0,0.00211494]
[1740525960537,0.21499217,89240.0,89239.0,0.00211494]
[1740525960708,0.23596955,89240.0,89239.0,0.00211494]
[1740525960923,0.23493046,89240.0,89239.0,0.00211494]
[1740525962585,0.22344092,89240.0,89239.0,0.00211494]
[1740525962825,0.29284092,89240.0,89239.0,0.00211494]
[1740525963261,0.29184092,89240.0,89239.0,0.00211494]
[1740525963468,0.29284092,89240.0,89239.0,0.00211494]
[1740525964790,0.52444092,89240.0,89239.0,0.00211494]
[1740525966208,0.53492176,89240.0,89239.0,0.00211494]
[1740525968430,0.01048084,89240.0,89239.0,0.00211494]
[1740525968570,0.17960593,89240.0,89239.0,0.00211494]
[1740525968778,0.18797956,89240.0,89239.0,0.00211494]
[1740525972668,0.18882796,89240.0,89239.0,0.00211494]
[1740525973137,0.17834712,89240.0,89239.0,0.00211494]
[1740525974966,0.47834712,89240.0,89239.0,0.00211494]
[1740525975170,0.47730803,89240.0,89239.0,0.00211494]
[1740525975984,0.48782389,89240.0,89239.0,0.00211494]
[1740525985678,0.47730803,89240.0,89239.0,0.00211494]
[1740525986024,0.4689344,89240.0,89239.0,0.00211494]
[1740525997766,0.0008484,89240.0,89239.0,0.00211494]
[1740525997976,0.0008484,89240.0,89239.0,0.12971494]
[1740525998168,0.0008484,89240.0,89239.0,0.13981356]
[1740525998954,0.0008484,89240.0,89239.0,0.30790056]
[1740525999984,0.0008484,89240.0,89239.0,0.13981356]
[1740526000727,0.0008484,89240.0,89239.0,0.14381356]
[1740526001206,0.0008484,89240.0,89239.0,0.14481356]
[1740526001407,0.0008484,89240.0,89239.0,0.14781356]
[1740526001608,0.168071,89248.0,89240.0,0.0796]
[1740526001767,0.2249304,89253.0,89240.0,0.0796]
[1740526001968,0.2249304,89253.0,89241.0,0.08967805]
[1740526002427,0.16807,89249.0,89241.0,0.08967805]
[1740526002629,0.224088,89251.0,89241.0,0.08967805]
[1740526002829,0.224084,89252.0,89241.0,0.08967805]
[1740526003008,0.168072,89248.0,89241.0,0.08967805]
[1740526003364,0.0028484,89253.0,89241.0,0.0796]
[1740526003596,0.16808,89243.0,89241.0,0.0796]
[1740526003793,0.16808,89243.0,89242.0,0.01007683]
[1740526003997,0.0028484,89253.0,89241.0,0.0796]
[1740526004218,0.168076,89246.0,89241.0,0.0796]
[1740526004437,0.168073,89247.0,89241.0,0.0796]
[1740526004658,0.3293,89252.0,89241.0,0.0796]
[1740526004889,0.168074,89247.0,89241.0,0.0796]
[1740526005061,0.3293,89252.0,89241.0,0.0796]
[1740526005443,0.168076,89246.0,89241.0,0.0796]
[1740526005840,0.168073,89247.0,89241.0,0.0796]
[1740526006036,0.553386,89252.0,89241.0,0.0796]
[1740526006037,0.3293,89252.0,89241.0,0.0796]
[1740526006235,0.168086,89240.0,89239.0,0.00211494]
[1740526007601,0.497386,89240.0,89239.0,0.00211494]
[1740526007779,0.497386,89240.0,89239.0,0.00511494]
[1740526009436,0.497386,89240.0,89239.0,0.00911494]
[1740526009648,0.797386,89240.0,89239.0,0.00911494]
[1740526010453,0.797386,89240.0,89239.0,0.00611494]
[1740526011660,0.797386,89240.0,89239.0,0.00211494]
[1740526011992,0.799386,89240.0,89239.0,0.00211494]
[1740526012418,0.797386,89240.0,89239.0,0.00211494]
[1740526012796,0.799386,89240.0,89239.0,0.00211494]
[1740526014617,0.797386,89240.0,89239.0,0.00211494]
[1740526015161,0.799386,89240.0,89239.0,0.00211494]
[1740526015458,0.797386,89240.0,89239.0,0.00211494]
[1740526015869,0.799386,89240.0,89239.0,0.00211494]
[1740526016636,0.49580074,89240.0,89239.0,0.00211494]
[1740526017021,0.66388674,89240.0,89239.0,0.00211494]
[1740526018561,0.19580074,89240.0,89239.0,0.07981494]
[1740526018943,0.19580074,89240.0,89239.0,0.13840632]
[1740526019370,0.19380074,89240.0,89239.0,0.13840632]
[1740526019572,0.19580074,89240.0,89239.0,0.13840632]
[1740526019766,0.19580074,89240.0,89239.0,0.12831494]
[1740526020152,0.19580074,89240.0,89239.0,0.13940632]
[1740526020752,0.19380074,89240.0,89239.0,0.13940632]
[1740526021169,0.19380074,89240.0,89239.0,0.14040632]
[1740526021365,0.19380074,89240.0,89239.0,0.14240632]
[1740526021569,0.19380074,89240.0,89239.0,0.14040632]
[1740526021767,0.19380074,89240.0,89239.0,0.13840632]
[1740526021990,0.19380074,89240.0,89239.0,0.14040632]
[1740526022334,0.168074,89247.0,89239.0,0.14040632]
[1740526022527,0.168074,89246.0,89239.0,0.12831494]
[1740526022748,0.224096,89248.0,89240.0,0.01009015]
[1740526022958,0.168073,89247.0,89240.0,0.01009015]
[1740526023161,0.168071,89248.0,89240.0,0.01009015]
[1740526023433,0.0008484,89252.0,89241.0,0.0777]
[1740526023900,0.0008484,89252.0,89244.0,0.0777]
[1740526024104,0.0008484,89252.0,89244.0,0.245778]
[1740526024276,0.0008484,89252.0,89245.0,0.010084]
[1740526024652,0.0008484,89252.0,89247.0,0.0777]
[1740526025083,0.0028484,89252.0,89248.0,0.01008032]
[1740526026113,0.0008484,89252.0,89248.0,0.01008032]
[1740526026713,0.0008484,89252.0,89247.0,0.0777]
[1740526027099,0.0008484,89252.0,89248.0,0.002]
[1740526027304,0.0008484,89252.0,89247.0,0.0777]
[1740526027528,0.0028484,89252.0,89247.0,0.0777]
[1740526027702,0.0028484,89252.0,89248.0,0.01108032]
[1740526028504,0.0008484,89252.0,89248.0,0.01108032]
[1740526028968,0.0008484,89252.0,89248.0,0.01308032]
[1740526029116,0.0008484,89252.0,89248.0,0.01208032]
[1740526030126,0.1689124,89252.0,89248.0,0.01308032]
[1740526030325,0.1689124,89252.0,89248.0,0.01108032]
[1740526030528,0.0008484,89252.0,89248.0,0.01008032]
[1740526030721,0.0008484,89252.0,89248.0,0.01408032]
[1740526030995,0.168065,89251.0,89248.0,0.004]
[1740526031145,0.0008484,89252.0,89247.0,0.0777]
[1740526031323,0.0008484,89252.0,89239.0,0.05061494]
[1740526031324,0.224092,89249.0,89239.0,0.05061494]
[1740526031539,0.22512609,89251.0,89239.0,0.05061494]
[1740526031540,0.168086,89240.0,89239.0,0.00211494]
[1740526031767,0.16912509,89240.0,89239.0,0.00211494]
[1740526031969,0.168086,89240.0,89239.0,0.00211494]
[1740526032600,0.3,89250.0,89239.0,0.00211494]